[Event "Panevezys Elite 2018"]
[Site "Panevezys"]
[Date "2018.07.04"]
[Round "7.10"]
[White "Krivonosov, Oleg"]
[Black "Prigodin, Ruslan"]
[Result "1-0"]
[ECO "D10"]
[WhiteElo "2399"]
[BlackElo "2036"]
[Annotator "ChessBase"]
[PlyCount "107"]
[EventDate "2018.06.29"]
[EventType "swiss"]
[EventRounds "9"]
[EventCountry "LTU"]
[SourceTitle "playchess.com"]
[Source "ChessBase"]
[SourceQuality "1"]
[TimeControl "40/5400+30:1800+30"]

1. Nf3 d5 2. d4 Nf6 3. c4 c6 4. cxd5 cxd5 5. Nc3 Nc6 6. Bf4 a6 7. Rc1 Nh5 8. Be5 f6 9. Bg3 e5 10. e3 Nxg3 11. hxg3 Be6 12. Be2 Be7 13. O-O O-O 14. Na4 Rc8 15. a3 exd4 16. Nxd4 Nxd4 17. Qxd4 Qd6 18. b4 Qe5 19. Nc5 Bxc5 20. Rxc5 Qxd4 21. exd4 Rxc5 22. bxc5 Bd7 23. Rb1 Bc6 24. Rb6 Rc8 25. a4 Kf7 26. f3 Ke7 27. a5 Kd8 28. Bd3 g6 29. Kf2 Kc7 30. g4 Re8 31. Rb1 Re7 32. Rb4 Re8 33. Rb6 Re7 34. Be2 Re8 35. Bd1 Re7 36. Bb3 Re8 37. Rb4 Re7 38. Ba4 Bxa4 39. Rxa4 g5 40. Rb4 Re6 41. Rb1 Kc8 42. Rh1 Re7 43. Rh6 Rf7 44. g3 Kc7 45. f4 gxf4 46. gxf4 Kc6 47. g5 Kd7 48. gxf6 Kc6 49. Kf3 Kb5 50. Kg4 Kc4 51. Kf5 Kxd4 52. Ke6 Rc7 53. f7 Rc6+ 54. Kd7 1-0

[Event "Panevezys Elite 2018"]
[Site "Panevezys"]
[Date "2018.07.04"]
[Round "7.11"]
[White "Tsiganova, Monika"]
[Black "Stasans, Aivars"]
[Result "1/2-1/2"]
[ECO "A48"]
[WhiteElo "2131"]
[BlackElo "2071"]
[Annotator "ChessBase"]
[PlyCount "41"]
[EventDate "2018.06.29"]
[EventType "swiss"]
[EventRounds "9"]
[EventCountry "LTU"]
[SourceTitle "playchess.com"]
[Source "ChessBase"]
[SourceQuality "1"]
[TimeControl "40/5400+30:1800+30"]

1. d4 Nf6 2. Nf3 g6 3. c4 Bg7 4. Nc3 O-O 5. Bf4 d6 6. h3 c5 7. e3 cxd4 8. exd4 d5 9. Be2 Nc6 10. O-O dxc4 11. Bxc4 Na5 12. Be2 Be6 13. Re1 Rc8 14. Qa4 a6 15. Rac1 Re8 16. b4 Nc4 17. b5 Nb6 18. Qa3 Nc4 19. Qa4 Nb6 20. Qa3 Nc4 21. Qa4 1/2-1/2

[Event "Panevezys Elite 2018"]
[Site "Panevezys"]
[Date "2018.07.04"]
[Round "7.12"]
[White "Van Osch, Mees"]
[Black "Parligras, Cosmin"]
[Result "1-0"]
[ECO "A00"]
[WhiteElo "2324"]
[BlackElo "2231"]
[Annotator "ChessBase"]
[PlyCount "63"]
[EventDate "2018.06.29"]
[EventType "swiss"]
[EventRounds "9"]
[EventCountry "LTU"]
[SourceTitle "playchess.com"]
[Source "ChessBase"]
[SourceQuality "1"]
[TimeControl "40/5400+30:1800+30"]

1. e4 c6 2. Nc3 d5 3. Nf3 Bg4 4. h3 Bxf3 5. Qxf3 e6 6. Be2 d4 7. Nb1 Qc7 8. O-O Nf6 9. a4 Be7 10. Na3 O-O 11. d3 Nbd7 12. Bd2 Nc5 13. Nc4 Nfd7 14. Qf4 e5 15. Qg3 Nxa4 16. Nxe5 Qxe5 17. Qxe5 Nxe5 18. Rxa4 c5 19. f4 Nc6 20. e5 a6 21. Bf3 Rac8 22. c4 Rfe8 23. Raa1 g6 24. g4 g5 25. Bd5 Kg7 26. Rae1 gxf4 27. Rxf4 Rf8 28. Rf5 f6 29. exf6+ Bxf6 30. Re6 Nd8 31. Rb6 Rc7 32. Bf4 1-0

[Event "Panevezys Elite 2018"]
[Site "Panevezys"]
[Date "2018.07.04"]
[Round "7.13"]
[White "Maryasin, Boris"]
[Black "Sinitsina, Anastassia"]
[Result "1-0"]
[ECO "A00"]
[WhiteElo "2304"]
[BlackElo "2101"]
[Annotator "ChessBase"]
[PlyCount "65"]
[EventDate "2018.06.29"]
[EventType "swiss"]
[EventRounds "9"]
[EventCountry "LTU"]
[SourceTitle "playchess.com"]
[Source "ChessBase"]
[SourceQuality "1"]
[TimeControl "40/5400+30:1800+30"]

1. e4 c5 2. Nf3 d6 3. d4 cxd4 4. Nxd4 Nf6 5. Nc3 a6 6. f4 e5 7. Nf3 Nbd7 8. a4 b6 9. Bc4 Qc7 10. Qe2 Be7 11. O-O O-O 12. Nh4 Re8 13. Nf5 Bf8 14. fxe5 Nxe5 15. Bd5 Bb7 16. Bxb7 Qxb7 17. Bg5 Nfd7 18. Nd5 Kh8 19. Ra3 f6 20. Bd2 g6 21. Rh3 Nf7 22. Qg4 Ng5 23. Bxg5 fxg5 24. Qxg5 gxf5 25. Rxh7+ Kxh7 26. Qxf5+ Kh6 27. Qh3+ Kg7 28. Qg4+ Kh6 29. Rf3 Kh7 30. Rf7+ Kh6 31. Qh4+ Kg6 32. Qh7+ Kg5 33. Rf5+ 1-0

[Event "Panevezys Elite 2018"]
[Site "Panevezys"]
[Date "2018.07.05"]
[Round "8"]
[White "Laurusas, Tomas"]
[Black "Priyanka, Nutakki"]
[Result "1-0"]
[ECO "A21"]
[WhiteElo "2453"]
[BlackElo "2181"]
[Annotator "ChessBase"]
[PlyCount "77"]
[EventDate "2018.06.29"]
[EventType "swiss"]
[EventRounds "9"]
[EventCountry "LTU"]
[SourceTitle "playchess.com"]
[Source "ChessBase"]
[SourceQuality "1"]
[TimeControl "40/5400+30:1800+30"]

1. c4 {[%emt 0:00:00]} e5 {[%emt 0:00:00]} 2. Nc3 {[%emt 0:00:00]} Bb4 {[%emt 0:00:44]} 3. e3 {[%emt 0:00:13]} Nf6 {[%emt 0:03:10]} 4. Nge2 {[%emt 0:00:06]} O-O {[%emt 0:02:48]} 5. a3 {[%emt 0:00:15]} Bxc3 {[%emt 0:00:54]} 6. Nxc3 {[%emt 0:00:05]} a5 {[%emt 0:02:36]} 7. d4 {[%emt 0:06:51]} exd4 {[%emt 0:01:51]} 8. Qxd4 {[%emt 0:00:15]} Nc6 {[%emt 0:04:49]} 9. Qd1 {[%emt 0:00:55]} d6 {[%emt 0:02:37]} 10. Be2 {[%emt 0:00:31]} Bf5 {[%emt 0:14:23]} 11. O-O {[%emt 0:20:06]} Ne4 {[%emt 0:04:03]} 12. Bd2 {[%emt 0:03:33]} Nc5 {[%emt 0:05:26]} 13. b3 {[%emt 0:01:37]} Bd3 {[%emt 0:22:08]} 14. Bxd3 {[%emt 0:04:06]} Nxd3 {[%emt 0:00:02]} 15. Qc2 {[%emt 0:00:49]} Nc5 {[%emt 0:00:08]} 16. Rad1 {[%emt 0:00:28]} Re8 {[%emt 0:08:09]} 17. Bc1 {[%emt 0:00:51]} Qc8 {[%emt 0:16:11]} 18. Bb2 {[%emt 0:01:52]} Ne5 {[%emt 0:05:23]} 19. Nd5 {[%emt 0:00:23]} Ned7 {[%emt 0:03:29]} 20. Rd4 {[%emt 0:01:18]} c6 {[%emt 0:00:27]} 21. Nf4 {[%emt 0:07:18]} Qc7 {[%emt 0:00:35]} 22. Rfd1 {[%emt 0:00:09]} Rad8 {[%emt 0:00:33]} 23. Rxd6 {[%emt 0:01:01]} Nf6 {[%emt 0:00:28]} 24. Rxd8 {[%emt 0:01:56]} Rxd8 {[%emt 0:00:01]} 25. Bxf6 {[%emt 0:00:47]} gxf6 {[%emt 0:00:54]} 26. h3 {[%emt 0:00:50]} Rxd1+ {[%emt 0:00:22]} 27. Qxd1 {[%emt 0:00:06]} Qe5 {[%emt 0:00:40]} 28. Qg4+ {[%emt 0:05:37]} Kf8 {[%emt 0:00:19]} 29. Qc8+ {[%emt 0:00:48]} Qe8 {[%emt 0:00:15]} 30. Qf5 {[%emt 0:00:32]} Qe5 {[%emt 0:00:41]} 31. Qxh7 {[%emt 0:00:50]} Nxb3 {[%emt 0:00:22]} 32. Qd3 {[%emt 0:00:55]} a4 {[%emt 0:00:54]} 33. Qd8+ {[%emt 0:00:27]} Kg7 {[%emt 0:00:12]} 34. g4 {[%emt 0:00:04]} Qa1+ {[%emt 0:00:44]} 35. Kg2 {[%emt 0:00:06]} Qe5 {[%emt 0:00:35]} 36. Nh5+ {[%emt 0:04:20]} Kh7 {[%emt 0:00:06]} 37. Nxf6+ {[%emt 0:01:27]} Kg6 {[%emt 0:00:10]} 38. Nh5 {[%emt 0:00:05]} Qe4+ {[%emt 0:00:26]} 39. f3 {[%emt 0:01:53]} 1-0

[Event "Panevezys Elite 2018"]
[Site "Panevezys"]
[Date "2018.07.05"]
[Round "8"]
[White "Bjerre, Jonas Buhl"]
[Black "Stremavicius, Titas"]
[Result "0-1"]
[ECO "B07"]
[WhiteElo "2436"]
[BlackElo "2444"]
[Annotator "NA"]
[PlyCount "90"]
[EventDate "2018.06.29"]
[EventType "swiss"]
[EventRounds "9"]
[EventCountry "LTU"]
[SourceTitle "playchess.com"]
[Source "ChessBase"]
[SourceQuality "1"]
[TimeControl "40/5400+30:1800+30"]

1. e4 {[%emt 0:00:00]} d6 {[%emt 0:00:00]} 2. d4 {[%emt 0:00:00]} Nf6 {[%emt 0:00:00]} 3. Nc3 {[%emt 0:00:00]} g6 {[%emt 0:00:01]} 4. Be3 {[%emt 0:00:00]} c6 {[%emt 0:00:14]} 5. Qd2 {[%emt 0:00:07]} Nbd7 {[%emt 0:00:16]} 6. Nf3 {[%emt 0:01:48]} Bg7 {[%emt 0:00:21]} 7. Bd3 {[%emt 0:02:32]} O-O {[%emt 0:00:34]} 8. Bh6 {[%emt 0:01:14]} e5 {[%emt 0:00:34]} 9. h4 {[%emt 0:05:37]} exd4 {[%emt 0:03:20]} 10. Ne2 {[%emt 0:08:05]} Bxh6 {[%emt 0:25:17]} 11. Qxh6 {[%emt 0:00:17]} Qa5+ {[%emt 0:00:09]} 12. Kf1 {[%emt 0:04:44]} Ng4 {[%emt 0:02:24]} 13. Qf4 {[%emt 0:05:00]} Nde5 {[%emt 0:00:17]} 14. Nfxd4 {[%emt 0:04:32]} Nxd3 {[%emt 0:19:38]} 15. cxd3 {[%emt 0:00:51]} f5 {[%emt 0:00:09]} 16. exf5 {[%emt 0:05:04]} Bxf5 {[%emt 0:00:48]} 17. Nxf5 {[%emt 0:01:32]} Qxf5 {[%emt 0:04:04]} 18. Qxf5 {[%emt 0:00:24]} Rxf5 {[%emt 0:00:08]} 19. f3 {[%emt 0:00:57]} Re8 {[%emt 0:00:18]} 20. Re1 {[%emt 0:03:13]} Re3 {[%emt 0:04:32]} 21. Ng3 {[%emt 0:04:19]} Rc5 {[%emt 0:13:12]} 22. Rxe3 {[%emt 0:02:28]} Nxe3+ {[%emt 0:00:02]} 23. Kf2 {[%emt 0:00:15]} Nd5 {[%emt 0:00:05]} 24. Re1 {[%emt 0:05:33]} Nf4 {[%emt 0:00:48]} 25. Re7 {[%emt 0:02:21]} Rc2+ {[%emt 0:01:53]} 26. Kf1 {[%emt 0:00:55]} Rc1+ {[%emt 0:00:27]} 27. Kf2 {[%emt 0:02:20]} Nxd3+ {[%emt 0:00:06]} 28. Ke3 {[%emt 0:01:13]} Re1+ {[%emt 0:00:06]} 29. Ne2 {[%emt 0:00:18]} Nc1 {[%emt 0:00:08]} 30. Kd2 {[%emt 0:00:41]} Rxe2+ {[%emt 0:00:05]} 31. Rxe2 {[%emt 0:00:06]} Nxe2 {[%emt 0:00:04]} 32. Kxe2 {[%emt 0:00:05]} Kf7 {[%emt 0:00:21]} 33. Ke3 {[%emt 0:00:07]} Ke6 {[%emt 0:01:15]} 34. Kd4 {[%emt 0:00:18]} c5+ {[%emt 0:01:07]} 35. Kc4 {[%emt 0:00:27]} b6 {[%emt 0:00:04]} 36. g3 {[%emt 0:00:55]} d5+ {[%emt 0:00:08]} 37. Kd3 {[%emt 0:00:14]} Ke5 {[%emt 0:00:54]} 38. a4 {[%emt 0:00:39]} a6 {[%emt 0:00:11]} 39. Ke3 {[%emt 0:00:25]} b5 {[%emt 0:01:14]} 40. axb5 {[%emt 0:00:04]} axb5 {[%emt 0:00:05]} 41. Kd3 {[%emt 0:30:08]} c4+ {[%emt 0:30:24]} 42. Kc3 {[%emt 0:00:13]} d4+ {[%emt 0:00:09]} 43. Kd2 {[%emt 0:00:14]} b4 {[%emt 0:00:38]} 44. Ke2 {[%emt 0:00:08]} Kd5 {[%emt 0:00:22]} 45. Kd2 {[%emt 0:00:12]} b3 {[%emt 0:01:02]} 0-1

[Event "Panevezys Elite 2018"]
[Site "Panevezys"]
[Date "2018.07.05"]
[Round "8"]
[White "Harutjunyan, Gevorg"]
[Black "Grib, Roman"]
[Result "1-0"]
[ECO "C12"]
[WhiteElo "2428"]
[BlackElo "2445"]
[Annotator "NA"]
[PlyCount "83"]
[EventDate "2018.06.29"]
[EventType "swiss"]
[EventRounds "9"]
[EventCountry "LTU"]
[SourceTitle "playchess.com"]
[Source "ChessBase"]
[SourceQuality "1"]
[TimeControl "40/5400+30:1800+30"]

1. e4 {[%emt 0:00:00]} e6 {[%emt 0:00:00]} 2. d4 {[%emt 0:00:00]} d5 {[%emt 0:00:02]} 3. Nc3 {[%emt 0:00:00]} Nf6 {[%emt 0:00:08]} 4. Bg5 {[%emt 0:00:00]} Bb4 {[%emt 0:00:07]} 5. e5 {[%emt 0:00:00]} h6 {[%emt 0:00:05]} 6. Bd2 {[%emt 0:02:39]} Bxc3 {[%emt 0:00:06]} 7. bxc3 {[%emt 0:00:05]} Ne4 {[%emt 0:00:03]} 8. Qg4 {[%emt 0:00:25]} Kf8 {[%emt 0:00:04]} 9. Nf3 {[%emt 0:04:09]} c5 {[%emt 0:03:45]} 10. Bd3 {[%emt 0:03:27]} Nxd2 {[%emt 0:01:57]} 11. Kxd2 {[%emt 0:00:08]} Nc6 {[%emt 0:16:11]} 12. h4 {[%emt 0:02:53]} c4 {[%emt 0:04:14]} 13. Be2 {[%emt 0:00:19]} b5 {[%emt 0:00:34]} 14. Qf4 {[%emt 0:06:40]} Rb8 {[%emt 0:06:09]} 15. a3 {[%emt 0:01:12]} a5 {[%emt 0:00:11]} 16. g4 {[%emt 0:00:06]} g6 {[%emt 0:26:59]} 17. Qf6 {[%emt 0:12:49]} Rg8 {[%emt 0:06:17]} 18. Ke3 {[%emt 0:04:44]} Ke8 {[%emt 0:04:45]} 19. Rhb1 {[%emt 0:08:32]} Qe7 {[%emt 0:10:28]} 20. Ne1 {[%emt 0:07:43]} Qxf6 {[%emt 0:12:27]} 21. exf6 {[%emt 0:00:16]} e5 {[%emt 0:00:23]} 22. dxe5 {[%emt 0:06:41]} g5 {[%emt 0:00:59]} 23. f4 {[%emt 0:07:00]} gxh4 {[%emt 0:05:00]} 24. Bf3 {[%emt 0:00:35]} Nd8 {[%emt 0:00:32]} 25. f5 {[%emt 0:01:39]} h5 {[%emt 0:00:25]} 26. Kf4 {[%emt 0:00:20]} hxg4 {[%emt 0:00:30]} 27. Bxg4 {[%emt 0:00:06]} Rb6 {[%emt 0:00:36]} 28. Nf3 {[%emt 0:00:20]} Bb7 {[%emt 0:00:29]} 29. Nd4 {[%emt 0:00:23]} Ba6 {[%emt 0:00:06]} 30. Bf3 {[%emt 0:01:10]} Nc6 {[%emt 0:00:13]} 31. Bxd5 {[%emt 0:03:52]} Nxd4 {[%emt 0:00:20]} 32. cxd4 {[%emt 0:00:05]} Bb7 {[%emt 0:01:01]} 33. Bxc4 {[%emt 0:00:29]} h3 {[%emt 0:00:42]} 34. e6 {[%emt 0:01:39]} fxe6 {[%emt 0:00:38]} 35. fxe6 {[%emt 0:00:29]} Rh8 36. Bxb5+ {[%emt 0:01:34]} Kd8 {[%emt 0:01:01]} 37. e7+ {[%emt 0:00:23]} Kc7 {[%emt 0:00:02]} 38. e8=Q {[%emt 0:01:07]} Rxf6+ {[%emt 0:00:04]} 39. Ke5 {[%emt 0:00:25]} Rxe8+ {[%emt 0:00:02]} 40. Bxe8 {[%emt 0:00:07]} Rf2 {[%emt 0:00:03]} 41. Rxb7+ {[%emt 0:30:43]} Kxb7 {[%emt 0:30:02]} 42. Bg6 {[%emt 0:00:16]} 1-0

[Event "Panevezys Elite 2018"]
[Site "Panevezys"]
[Date "2018.07.05"]
[Round "8"]
[White "Badelka, Olga"]
[Black "Juksta, Karolis"]
[Result "1-0"]
[ECO "E00"]
[WhiteElo "2407"]
[BlackElo "2187"]
[Annotator "NA"]
[PlyCount "65"]
[EventDate "2018.06.29"]
[EventType "swiss"]
[EventRounds "9"]
[EventCountry "LTU"]
[SourceTitle "playchess.com"]
[Source "ChessBase"]
[SourceQuality "1"]
[TimeControl "40/5400+30:1800+30"]

1. d4 {[%emt 0:00:00]} e6 {[%emt 0:00:00]} 2. c4 {[%emt 0:00:00]} Bb4+ {[%emt 0:00:22]} 3. Bd2 {[%emt 0:00:00]} Bxd2+ {[%emt 0:00:06]} 4. Qxd2 {[%emt 0:00:00]} Nf6 {[%emt 0:00:10]} 5. Nf3 {[%emt 0:00:02]} O-O {[%emt 0:00:35]} 6. g3 {[%emt 0:00:08]} Qe7 {[%emt 0:04:10]} 7. Bg2 {[%emt 0:00:18]} d6 {[%emt 0:10:02]} 8. O-O {[%emt 0:00:21]} e5 {[%emt 0:00:10]} 9. Nc3 {[%emt 0:00:54]} Bg4 {[%emt 0:05:24]} 10. dxe5 {[%emt 0:07:40]} dxe5 {[%emt 0:00:37]} 11. h3 {[%emt 0:01:04]} Bh5 {[%emt 0:09:32]} 12. Rfd1 {[%emt 0:05:30]} Nc6 {[%emt 0:07:11]} 13. g4 {[%emt 0:02:31]} Bg6 {[%emt 0:03:19]} 14. Nd5 {[%emt 0:00:12]} Qd6 {[%emt 0:07:08]} 15. Qg5 {[%emt 0:08:22]} Rfd8 {[%emt 0:13:43]} 16. c5 {[%emt 0:12:59]} Qxc5 {[%emt 0:03:42]} 17. Nxf6+ {[%emt 0:00:05]} gxf6 {[%emt 0:00:05]} 18. Qxf6 {[%emt 0:00:03]} Qc2 {[%emt 0:09:33]} 19. Re1 {[%emt 0:04:27]} Qxb2 {[%emt 0:04:53]} 20. Nh4 {[%emt 0:01:52]} Nd4 {[%emt 0:04:41]} 21. Nxg6 {[%emt 0:07:56]} hxg6 {[%emt 0:00:12]} 22. Qxe5 {[%emt 0:07:01]} Re8 {[%emt 0:04:20]} 23. Qxc7 {[%emt 0:00:54]} Nxe2+ {[%emt 0:01:27]} 24. Kh1 {[%emt 0:00:21]} Qf6 {[%emt 0:05:00]} 25. Qxb7 {[%emt 0:02:52]} Qxf2 {[%emt 0:02:55]} 26. Qf3 {[%emt 0:00:06]} Qd4 {[%emt 0:00:36]} 27. Rad1 {[%emt 0:01:13]} Qa4 {[%emt 0:00:06]} 28. Rf1 {[%emt 0:13:15]} Qxa2 {[%emt 0:02:50]} 29. Rd7 {[%emt 0:00:24]} Rf8 {[%emt 0:00:53]} 30. Qd3 {[%emt 0:00:06]} Rab8 {[%emt 0:00:46]} 31. Bd5 {[%emt 0:00:16]} Ng3+ {[%emt 0:00:31]} 32. Qxg3 {[%emt 0:00:14]} Qe2 {[%emt 0:00:08]} 33. Bxf7+ {[%emt 0:00:33]} 1-0

[Event "Panevezys Elite 2018"]
[Site "Panevezys"]
[Date "2018.07.05"]
[Round "8"]
[White "Krivonosov, Oleg"]
[Black "Bekasovs, Rihards"]
[Result "1/2-1/2"]
[ECO "A05"]
[WhiteElo "2399"]
[BlackElo "2052"]
[Annotator "NA"]
[PlyCount "25"]
[EventDate "2018.06.29"]
[EventType "swiss"]
[EventRounds "9"]
[EventCountry "LTU"]
[SourceTitle "playchess.com"]
[Source "ChessBase"]
[SourceQuality "1"]
[TimeControl "40/5400+30:1800+30"]

1. Nf3 {[%emt 0:00:00]} Nf6 {[%emt 0:00:00]} 2. c4 {[%emt 0:00:00]} e6 {[%emt 0:00:07]} 3. g3 {[%emt 0:00:29]} b6 {[%emt 0:00:28]} 4. Bg2 {[%emt 0:00:17]} Bb7 {[%emt 0:00:20]} 5. O-O {[%emt 0:00:42]} Be7 {[%emt 0:00:36]} 6. Nc3 {[%emt 0:02:16]} O-O {[%emt 0:00:59]} 7. d4 {[%emt 0:00:19]} Ne4 {[%emt 0:00:17]} 8. Nxe4 {[%emt 0:00:11]} Bxe4 {[%emt 0:00:12]} 9. Nh4 {[%emt 0:00:18]} Bxg2 {[%emt 0:00:18]} 10. Nxg2 {[%emt 0:00:04]} d5 {[%emt 0:00:42]} 11. Qa4 {[%emt 0:00:13]} Qd7 {[%emt 0:00:30]} 12. Qxd7 {[%emt 0:00:20]} Nxd7 {[%emt 0:00:09]} 13. cxd5 {[%emt 0:00:06]} 1/2-1/2

[Event "Panevezys Elite 2018"]
[Site "Panevezys"]
[Date "2018.07.05"]
[Round "8"]
[White "Van Osch, Mees"]
[Black "Vicas, Marijus"]
[Result "1-0"]
[ECO "C58"]
[WhiteElo "2324"]
[BlackElo "2184"]
[Annotator "NA"]
[PlyCount "109"]
[EventDate "2018.06.29"]
[EventType "swiss"]
[EventRounds "9"]
[EventCountry "LTU"]
[SourceTitle "playchess.com"]
[Source "ChessBase"]
[SourceQuality "1"]
[TimeControl "40/5400+30:1800+30"]

1. e4 {[%emt 0:04:19]} e5 {[%emt 0:00:00]} 2. Nf3 {[%emt 0:00:03]} Nc6 {[%emt 0:00:00]} 3. Bc4 {[%emt 0:00:07]} Nf6 {[%emt 0:00:46]} 4. Ng5 {[%emt 0:00:06]} d5 {[%emt 0:00:06]} 5. exd5 {[%emt 0:00:03]} Na5 {[%emt 0:00:06]} 6. Bb5+ {[%emt 0:00:16]} c6 {[%emt 0:00:07]} 7. dxc6 {[%emt 0:00:04]} bxc6 {[%emt 0:00:05]} 8. Bd3 {[%emt 0:00:48]} Be7 {[%emt 0:04:44]} 9. Nc3 {[%emt 0:01:42]} Nd5 {[%emt 0:04:06]} 10. Nf3 {[%emt 0:01:55]} Nf4 {[%emt 0:09:56]} 11. O-O {[%emt 0:04:33]} Nxd3 {[%emt 0:03:46]} 12. cxd3 {[%emt 0:00:13]} f6 {[%emt 0:07:09]} 13. Qa4 {[%emt 0:00:56]} Rb8 {[%emt 0:01:49]} 14. Re1 {[%emt 0:26:13]} Rb4 {[%emt 0:07:17]} 15. Qc2 {[%emt 0:02:37]} Ba6 {[%emt 0:00:05]} 16. Re3 {[%emt 0:00:20]} Bc5 {[%emt 0:14:18]} 17. d4 {[%emt 0:00:57]} Bxd4 {[%emt 0:00:06]} 18. Nxd4 {[%emt 0:00:06]} Rxd4 {[%emt 0:00:07]} 19. b3 {[%emt 0:01:15]} Bd3 {[%emt 0:09:35]} 20. Qd1 {[%emt 0:01:05]} Bg6 {[%emt 0:00:23]} 21. Ba3 {[%emt 0:12:16]} Nb7 {[%emt 0:06:05]} 22. Qf3 {[%emt 0:01:58]} Qd7 {[%emt 0:00:05]} 23. Ne4 {[%emt 0:07:51]} Bxe4 {[%emt 0:06:05]} 24. Rxe4 {[%emt 0:00:05]} Rxe4 {[%emt 0:02:40]} 25. Qxe4 {[%emt 0:00:49]} Nd6 {[%emt 0:00:05]} 26. Qa4 {[%emt 0:14:05]} Nb5 {[%emt 0:05:51]} 27. Bc5 {[%emt 0:03:04]} Kf7 {[%emt 0:02:36]} 28. Qc4+ {[%emt 0:00:26]} Qe6 {[%emt 0:00:26]} 29. a4 {[%emt 0:03:55]} Nd4 {[%emt 0:00:09]} 30. Bxd4 {[%emt 0:00:42]} Qxc4 {[%emt 0:00:06]} 31. bxc4 {[%emt 0:00:02]} exd4 {[%emt 0:00:06]} 32. Rb1 {[%emt 0:00:11]} Re8 {[%emt 0:00:18]} 33. Kf1 {[%emt 0:00:13]} Re5 {[%emt 0:04:07]} 34. Rb7+ {[%emt 0:05:14]} Re7 {[%emt 0:00:05]} 35. Rb4 {[%emt 0:00:10]} Re5 {[%emt 0:01:47]} 36. Rb7+ {[%emt 0:00:22]} Re7 {[%emt 0:00:05]} 37. Rb4 {[%emt 0:00:02]} Re5 {[%emt 0:00:41]} 38. f4 {[%emt 0:07:12]} Ra5 {[%emt 0:04:13]} 39. Ke2 {[%emt 0:00:14]} Ke6 {[%emt 0:00:33]} 40. Kd3 {[%emt 0:01:53]} Kd6 {[%emt 0:00:19]} 41. Rb7 {[%emt 0:31:36]} Kc5 {[%emt 0:33:48]} 42. Rxg7 {[%emt 0:00:00]} Rxa4 {[%emt 0:00:00]} 43. Rxh7 {[%emt 0:00:00]} Ra3+ {[%emt 0:00:00]} 44. Ke4 {[%emt 0:00:00]} Kxc4 {[%emt 0:00:00]} 45. g4 {[%emt 0:00:00]} Ra1 {[%emt 0:00:00]} 46. h4 {[%emt 0:00:00]} Re1+ {[%emt 0:00:00]} 47. Kf5 {[%emt 0:00:00]} Kd3 {[%emt 0:00:00]} 48. Kxf6 {[%emt 0:00:00]} Kxd2 {[%emt 0:00:00]} 49. g5 {[%emt 0:00:00]} d3 {[%emt 0:00:00]} 50. g6 {[%emt 0:00:00]} Rg1 {[%emt 0:03:08]} 51. h5 {[%emt 0:00:00]} a5 {[%emt 0:02:53]} 52. h6 {[%emt 0:00:00]} a4 {[%emt 0:00:33]} 53. Rd7 {[%emt 0:00:00]} c5 {[%emt 0:02:13]} 54. g7 {[%emt 0:00:00]} c4 {[%emt 0:00:04]} 55. h7 {[%emt 0:00:00]} 1-0

[Event "Panevezys Elite 2018"]
[Site "Panevezys"]
[Date "2018.07.05"]
[Round "8"]
[White "Brazdzionis, Andrius"]
[Black "Vovk, Ilja"]
[Result "1/2-1/2"]
[ECO "E94"]
[WhiteElo "2283"]
[BlackElo "2273"]
[Annotator "NA"]
[PlyCount "88"]
[EventDate "2018.06.29"]
[EventType "swiss"]
[EventRounds "9"]
[EventCountry "LTU"]
[SourceTitle "playchess.com"]
[Source "ChessBase"]
[SourceQuality "1"]
[TimeControl "40/5400+30:1800+30"]

1. d4 {[%emt 0:00:00]} Nf6 {[%emt 0:00:00]} 2. Nf3 {[%emt 0:00:00]} g6 {[%emt 0:00:00]} 3. c4 {[%emt 0:00:00]} Bg7 {[%emt 0:00:00]} 4. Nc3 {[%emt 0:00:00]} O-O {[%emt 0:00:00]} 5. e4 {[%emt 0:00:00]} d6 {[%emt 0:00:00]} 6. Be2 {[%emt 0:00:00]} e5 {[%emt 0:00:09]} 7. O-O {[%emt 0:00:03]} Nh5 {[%emt 0:00:03]} 8. dxe5 {[%emt 0:02:35]} dxe5 {[%emt 0:00:08]} 9. Qxd8 {[%emt 0:00:40]} Rxd8 {[%emt 0:00:01]} 10. Nd5 {[%emt 0:00:07]} Na6 {[%emt 0:04:26]} 11. Bg5 {[%emt 0:00:27]} f6 {[%emt 0:01:13]} 12. Be3 {[%emt 0:00:54]} c6 {[%emt 0:14:37]} 13. Ne7+ {[%emt 0:00:43]} Kf7 {[%emt 0:00:19]} 14. Nxc8 {[%emt 0:00:05]} Raxc8 {[%emt 0:01:02]} 15. Bxa7 {[%emt 0:03:27]} Nf4 {[%emt 0:00:18]} 16. Rfe1 {[%emt 0:12:53]} Bf8 {[%emt 0:07:38]} 17. Bf1 {[%emt 0:15:26]} Ne6 {[%emt 0:38:46]} 18. Bb6 {[%emt 0:02:42]} Rd6 {[%emt 0:04:13]} 19. Rad1 {[%emt 0:04:05]} c5 {[%emt 0:02:21]} 20. Rxd6 {[%emt 0:01:04]} Bxd6 {[%emt 0:00:02]} 21. a3 {[%emt 0:01:16]} Bc7 {[%emt 0:03:37]} 22. Bxc7 {[%emt 0:01:44]} Naxc7 {[%emt 0:01:06]} 23. Rd1 {[%emt 0:04:38]} Ke7 {[%emt 0:05:57]} 24. g3 {[%emt 0:02:25]} Ne8 {[%emt 0:02:15]} 25. Rd3 {[%emt 0:18:10]} Nd6 {[%emt 0:01:13]} 26. Rb3 {[%emt 0:00:20]} Rc7 {[%emt 0:01:50]} 27. Bd3 {[%emt 0:01:31]} b5 {[%emt 0:01:19]} 28. Nd2 {[%emt 0:03:38]} Nd4 {[%emt 0:05:24]} 29. Rc3 {[%emt 0:00:14]} b4 {[%emt 0:03:20]} 30. axb4 {[%emt 0:00:36]} cxb4 {[%emt 0:00:06]} 31. Rc1 {[%emt 0:00:04]} Nb7 {[%emt 0:02:04]} 32. Ra1 {[%emt 0:09:17]} Rd7 {[%emt 0:00:03]} 33. Bf1 {[%emt 0:00:11]} Nc2 {[%emt 0:01:37]} 34. Ra7 {[%emt 0:00:04]} Nc5 {[%emt 0:00:51]} 35. Rxd7+ {[%emt 0:00:06]} Kxd7 {[%emt 0:00:10]} 36. Be2 {[%emt 0:02:15]} Nd4 {[%emt 0:00:30]} 37. Bd1 {[%emt 0:03:44]} Kd6 {[%emt 0:00:05]} 38. Kf1 {[%emt 0:02:38]} Nd3 {[%emt 0:00:24]} 39. b3 {[%emt 0:01:10]} Nc5 {[%emt 0:01:06]} 40. f3 {[%emt 0:01:00]} Nd3 {[%emt 0:00:34]} 41. Be2 {[%emt 0:30:35]} Nc1 {[%emt 0:03:36]} 42. Bd1 {[%emt 0:00:00]} Kc5 {[%emt 0:04:39]} 43. Kf2 {[%emt 0:00:00]} Na2 {[%emt 0:03:34]} 44. f4 {[%emt 0:00:00]} Nc1 {[%emt 0:14:14]} 1/2-1/2